Cogmind - Beta 14 @@@ ROGUE MODE // 2024.11.27 @ 12:51:04 Player: skye Result: Destroyed by H-88 Terminator with KE Penetrator Performance ------------- Evolutions (8) 4000 Regions Visited (14) 2800 Robots Destroyed (134) 670 Value Destroyed (3901) 3901 Prototype IDs (33) 660 Alien Tech Used (0) 0 Bonus (370) 370 TOTAL SCORE: 12401 Bonus ------- High Alert Combat Kills 20 Follower Combat Kills 50 Aligned with FarCom 300 Cogmind --------- Core Integrity 0/1450 Matter 212/300 Energy 15/100 System Corruption 13% Temperature Cool (0) Movement Core (100) Ox1 Location -2/Research Parts ------- > --- POWER (2) -------- (None) > --- PROPULSION (11) -- (None) > --- UTILITY (8) ------ Advanced Cryofiber Web Experimental Actuator Array Hacking Suite > --- WEAPON (2) ------- (None) > --- INVENTORY (5) ---- Micro Antimatter Reactor Advanced Trap Scanner Long-range Missile Launcher Advanced Remote Datajack Enhanced Force Lance Peak State ------------ > --- POWER ------------ Particle Reactor Light Quantum Reactor > --- PROPULSION ------- Improved Cesium-ion Thruster Improved Cesium-ion Thruster Improved Cesium-ion Thruster Field Propulsion Drive Nuclear Pulse Array Q-thruster Cooled Impulse Thruster Impulse Thruster Array > --- UTILITY ---------- Advanced Heat Sink Compact Battery Advanced Trap Scanner Improved Reaction Control System Improved Propulsion Shielding Hacking Suite Hacking Suite Improved System Shield > --- WEAPON ----------- Advanced Remote Datajack Enhanced Force Lance > --- INVENTORY -------- Micro Antimatter Reactor Improved Terrain Scanner Advanced ECM Suite System Restoration Module Long-range Missile Launcher [Rating: 135] Favorites ----------- Power Light Nuclear Core Engine Ion Engine Power Core Light Nuclear Core Reactor Particle Reactor Propulsion Light Treads Treads Light Treads Leg Aluminum Leg Wheel Wheel Hover Unit Hover Unit Flight Unit Improved Cesium-ion Thruster Utility Hacking Suite Device Heat Sink Storage High-capacity Storage Unit Processor Terrain Scan Processor Hackware Hacking Suite Protection Medium Armor Plating Weapon Katana Energy Gun Heavy Laser Energy Cannon Particle Cannon Ballistic Gun Improved Assault Rifle Ballistic Cannon Assault Cannon Launcher Rocket Launcher Special Weapon Improved Remote Datajack Slashing Weapon Katana Piercing Weapon Enhanced Force Lance Build | -11 -10 -9 -9 -9 -8 -8 -7 -7 -6 -5 -4 -4 -3 -2 ------- Run | Yrd Mat Mat Min Exi Min Mat Fac Sto Fac Fac Fac Ext Res Res Slots Evolved 16 | . . 2 . . . 2 2 . 2 2 2 . 2 2 Power 1 | . . . . . . . . . . 1 . . . . Propulsion 9 | . . . . . . 1 1 . 2 1 1 . 2 1 Utility 6 | . . 2 . . . 1 1 . . . 1 . . 1 Weapon . | . . . . . . . . . . . . . . . Parts Attached 176 | 2 13 22 11 . 9 34 11 . 11 16 8 2 15 22 Power 30 | . 4 3 1 . 2 5 1 . 2 2 3 . 2 5 Engine 13 | . 4 3 1 . 1 2 . . 1 1 . . . . Core 10 | . . . . . 1 3 1 . 1 1 3 . . . Reactor 7 | . . . . . . . . . . . . . 2 5 Propulsion 52 | 2 3 7 3 . 4 12 5 . 4 5 1 . 3 3 Treads 17 | 2 1 7 1 . 4 2 . . . . . . . . Leg . | . . . . . . . . . . . . . . . Wheel 7 | . 2 . 1 . . 4 . . . . . . . . Hover 3 | . . . 1 . . 1 . . . . . . . 1 Flight 25 | . . . . . . 5 5 . 4 5 1 . 3 2 Utility 55 | . 4 5 3 . . 10 4 . 3 7 3 1 7 8 Device 32 | . 1 2 2 . . 4 1 . 2 5 3 1 4 7 Storage 4 | . 2 . . . . 1 . . . . . . . 1 Processor 3 | . . . 1 . . 1 1 . . . . . . . Hackware 9 | . . 1 . . . 2 2 . . 2 . . 2 . Protection 7 | . 1 2 . . . 2 . . 1 . . . 1 . Artifact . | . . . . . . . . . . . . . . . Weapon 39 | . 2 7 4 . 3 7 1 . 2 2 1 1 3 6 Energy Gun 3 | . . . . . . 2 . . 1 . . . . . Energy Cannon 2 | . 1 1 . . . . . . . . . . . . Ballistic Gun 9 | . 1 1 1 . 1 3 1 . 1 . . . . . Ballistic Cannon 5 | . . 3 1 . . 1 . . . . . . . . Launcher 10 | . . 2 1 . 1 . . . . 1 . . 1 4 Special Weapon 4 | . . . . . . . . . . . 1 1 1 1 Impact Weapon . | . . . . . . . . . . . . . . . Slashing Weapon 4 | . . . 1 . 1 1 . . . 1 . . . . Piercing Weapon 2 | . . . . . . . . . . . . . 1 1 Special Melee Weapon . | . . . . . . . . . . . . . . . Unidentified Prototypes 4 | . . 1 . . . 1 . . . . . . 1 1 Parts Lost 52 | . 4 2 5 . 1 13 1 . 1 2 . 1 4 18 Power 5 | . 2 . 1 . . 1 . . . 1 . . . . Propulsion 23 | . 1 . 2 . 1 7 1 . . . . . 1 10 Utility 19 | . . 1 1 . . 4 . . . 1 . 1 3 8 Weapon 5 | . 1 1 1 . . 1 . . 1 . . . . . Highest Loss Streak 12 | . 2 1 3 . 1 6 1 . 1 1 . 1 2 12 To Critical Strikes 1 | . . . 1 . . . . . . . . . . . Average Slot Usage (%) 94 | . 98 98 95 100 99 94 98 100 96 87 85 90 86 57 Engine 6 | . 13 11 11 11 3 2 . . 2 3 . . . . Core 3 | . . . . . 7 6 6 7 3 6 9 10 1 . Treads 12 | . 26 18 20 11 21 6 . . . . . . . . Wheel 3 | . 1 3 . 11 . 15 . . . . . . . . Flight 10 | . . . . . . 1 29 30 38 34 36 36 36 21 Device 10 | . 3 14 11 11 11 9 7 7 4 5 11 15 16 9 Storage 7 | . 14 11 11 11 11 10 . . . . . . . 1 Processor 3 | . . . 5 11 11 9 4 . . . . . . . Hackware 14 | . . 10 11 11 11 9 32 38 33 27 21 21 14 10 Protection 3 | . 10 6 2 . . 4 . . 1 . . . 1 1 Energy Gun 1 | . 4 . . . . 7 . . . . . . . . Energy Cannon 3 | . 9 9 . . . . . . . . . . . . Ballistic Gun 6 | . 13 6 3 11 11 9 7 7 4 . . . . . Ballistic Cannon 2 | . . 3 8 11 . . . . . . . . . . Slashing Weapon 2 | . . . 6 . 9 . 7 7 6 4 5 5 2 . Peak Build Rating 135 | 6 10 21 25 26 28 36 48 47 60 80 99 98 132 135 Average Rating 36 | 6 8 18 22 25 27 29 44 47 57 74 87 94 114 88 On Entrance 47 | 6 6 10 21 25 26 28 36 47 47 58 78 93 94 131 Naked Turns . | . . . . . . . . . . . . . . . Heaviest Build 62 | 12 51 62 62 57 57 59 17 12 17 26 27 31 57 58 Greatest Support 69 | 40 40 43 43 16 45 42 22 22 34 43 50 50 69 69 Greatest Overweight (x) 5 | . 5 2 3 3 3 5 . . . . . . . 2 Average Overweight (x) . | . . 1 1 3 1 1 . . . . . . . . Largest Inventory Capacity 20 | 8 20 20 20 20 20 20 5 5 5 5 5 5 5 5 Average Capacity 14 | 8 11 20 20 20 20 19 5 5 5 5 5 5 5 5 Most Carried 20 | 6 15 20 20 20 20 20 5 5 5 5 5 5 5 5 Average Carried 13 | 6 9 19 19 19 19 19 4 5 4 4 4 4 4 4 Final Capacity 20 | 8 20 20 20 20 20 5 5 5 5 5 5 5 5 5 Final Carried 20 | 6 15 20 20 20 20 5 5 5 5 5 5 4 5 5 Class Distribution -------------------- 44% | Scavenger-Mutant 31% | Hacker-Sprinter 15% | Mutant 5% | Scavenger-Assassin Dominant Class ---------------- Mutant | -10/Materials Scavenger-Mutant | -9/Materials Scavenger-Mutant | -9/Mines Mutant | -9/Exiles Scavenger-Assassin | -8/Mines Scavenger-Mutant | -8/Materials Hacker-Sprinter | -7/Factory Hacker-Sprinter | -7/Storage Hacker-Sprinter | -6/Factory Hacker-Sprinter | -5/Factory Hacker-Sprinter | -4/Factory Hacker-Sprinter | -4/Extension Hacker-Sprinter | -3/Research Hacker-Sprinter | -2/Research Resources | -11 -10 -9 -9 -9 -8 -8 -7 -7 -6 -5 -4 -4 -3 -2 ----------- Run | Yrd Mat Mat Min Exi Min Mat Fac Sto Fac Fac Fac Ext Res Res Matter Collected 3357 | 200 270 610 255 . 146 1053 35 . 128 220 70 . 110 260 Remotely 103 | . 103 . . . . . . . . . . . . . Salvage Created 4704 | . 645 1289 189 . 414 1455 169 . 48 124 . . 89 282 Parts 298 | . 47 78 8 . 33 77 10 . 4 8 . . 11 22 Haulers Intercepted 9 | . 1 3 . . . 3 1 . . 1 . . . . Recyclers Shooed 1 | . . . . . . 1 . . . . . . . . Parts Field Recycled . | . . . . . . . . . . . . . . . Retrieved Matter . | . . . . . . . . . . . . . . . Parts Self-Destructed . | . . . . . . . . . . . . . . . Prevented . | . . . . . . . . . . . . . . . Kills | -11 -10 -9 -9 -9 -8 -8 -7 -7 -6 -5 -4 -4 -3 -2 ------- Run | Yrd Mat Mat Min Exi Min Mat Fac Sto Fac Fac Fac Ext Res Res Combat Hostiles Destroyed 98 | . 13 27 11 . 11 24 2 . 1 1 . . 1 7 Melee 7 | . . . . . 2 . 2 . 1 . . . . 2 Guns 35 | . 8 1 . . 6 20 . . . . . . . . Cannons 34 | . 5 21 4 . . 4 . . . . . . . . AOE 22 | . . 5 7 . 3 . . . . 1 . . 1 5 Classes Destroyed 18 | . 8 4 2 . 1 2 1 . . . . . . . Worker 8 | . 2 . . . 1 2 . . . 1 . . 1 1 Builder 1 | . 1 . . . . . . . . . . . . . Tunneler 4 | . . 1 . . 1 . . . . . . . 1 1 Hauler 9 | . 1 3 . . . 3 1 . . 1 . . . . Recycler 8 | . 1 3 2 . 1 1 . . . . . . . . Mechanic 1 | . . . . . . 1 . . . . . . . . Operator 7 | . 1 2 . . . 3 1 . . . . . . . Watcher 5 | . 2 2 . . . . . . . . . . 1 . Swarmer 26 | . 5 6 2 . 7 . . . . 1 . . . 5 Grunt 36 | . 8 11 . . 2 15 . . . . . . . . Brawler 3 | . . 1 . . 1 1 . . . . . . . . Duelist 4 | . . 2 . . . 2 . . . . . . . . Sentry 10 | . . 7 . . . 3 . . . . . . . . Demolisher 2 | . . . 2 . . . . . . . . . . . Specialist 2 | . . . . . . 2 . . . . . . . . Hunter 3 | . . . . . 1 1 1 . . . . . . . Programmer 5 | . . . . . . . 1 . 1 . . . 1 2 Assembled 7 | . . . 7 . . . . . . . . . . . Best Kill Streak 6 | . 3 3 6 . 5 4 1 . 1 2 . . 2 4 Combat Bots Only 6 | . 3 3 6 . 4 3 1 . 1 1 . . 1 3 Max Kills in Single Turn 6 | . 1 3 6 . 2 1 1 . 1 1 . . 1 2 Gunslinging . | . . . . . . . . . . . . . . . Exploded 6 | . . 3 6 . 1 . . . . 1 . . 1 2 Melee 1 | . . . . . 1 . 1 . 1 . . . . 1 Uniques/NPCs Destroyed . | . . . . . . . . . . . . . . . Combat | -11 -10 -9 -9 -9 -8 -8 -7 -7 -6 -5 -4 -4 -3 -2 -------- Run | Yrd Mat Mat Min Exi Min Mat Fac Sto Fac Fac Fac Ext Res Res Hostile Shots Fired 811 | . 115 92 29 . 52 164 17 . 80 4 6 17 40 195 Missed 294 | . 22 25 4 . 14 48 9 . 49 1 2 7 19 94 Damage Taken 9016 | . 976 898 681 . 472 1895 169 . 297 203 88 277 371 2689 Core 2638 | . 227 116 59 . 127 318 57 . 55 92 18 34 67 1468 Absorbed by Shields 28 | . . . . . . 28 . . . . . . . . Redirected to Shielding 149 | . 39 13 . . . . . . 41 . . . 14 42 Regen/Repaired (Parts) 288 | . . 83 . . . 122 28 . . 28 27 . . . Core Remaining (%) 70 | 100 9 . . . 24 42 . 91 93 90 . 95 94 . Volleys Fired 368 | . 74 113 21 . 30 118 . . 2 1 . . 3 6 Largest 2 | . 2 2 2 . 1 2 . . 1 1 . . 1 1 Hottest 112 | . 88 112 67 . 33 93 . . 28 43 . . 49 43 Shots Fired 546 | . 135 119 29 . 30 221 . . 2 1 . . 3 6 Gun 356 | . 104 17 8 . 27 198 . . 2 . . . . . Cannon 167 | . 31 98 15 . . 23 . . . . . . . . Launcher 23 | . . 4 6 . 3 . . . . 1 . . 3 6 Special . | . . . . . . . . . . . . . . . Kinetic 342 | . 68 78 23 . 27 144 . . 2 . . . . . Thermal 181 | . 67 37 . . . 77 . . . . . . . . Explosive 23 | . . 4 6 . 3 . . . . 1 . . 3 6 Electromagnetic . | . . . . . . . . . . . . . . . Robot Hit Streak 21 | . 6 21 6 . 13 17 . . 1 2 . . 3 2 Robot Miss Streak 5 | . 5 3 2 . 2 3 . . 1 . . . 1 1 Penetration Max 1 | . . . . . . 1 . . . . . . . . Secondary Targets 2 | . . . . . . 2 . . . . . . . . Max Gunslinging Chain 1 | . . . . . . 1 . . . . . . . . Shots Hit Robots 397 | . 73 84 18 . 25 159 9 . 7 5 . . 4 13 Core Hits 199 | . 34 39 15 . 20 64 3 . 1 3 . . 5 15 Critical Kills 2 | . . . . . . 2 . . . . . . . . Critical Parts Destroyed . | . . . . . . . . . . . . . . . Critical Strikes 21 | . 4 4 1 . . 7 1 . 2 . . . . 2 Burn 7 | . 4 . . . . 3 . . . . . . . . Destroy 3 | . . . . . . 3 . . . . . . . . Blast 6 | . . 4 1 . . 1 . . . . . . . . Sever 3 | . . . . . . . 1 . 2 . . . . . Impale 2 | . . . . . . . . . . . . . . 2 Melee Attacks 91 | . . . . . 3 . 11 . 24 9 9 . 10 25 Impact . | . . . . . . . . . . . . . . . Slashing 65 | . . . . . 3 . 11 . 24 9 9 . 9 . Piercing 26 | . . . . . . . . . . . . . 1 25 Sneak Attacks 9 | . . . . . . . 3 . 1 2 . . 1 2 Combat Hostiles 1 | . . . . . . . 1 . . . . . . . Follow-up Attacks . | . . . . . . . . . . . . . . . Damage Inflicted 10505 | . 1062 2118 747 . 554 2895 447 . 273 309 . . 462 1638 Guns 3778 | . 656 190 59 . 339 2511 . . 23 . . . . . Cannons 2643 | . 393 1614 263 . . 373 . . . . . . . . Explosions 2238 | . . 312 425 . 155 . . . . 65 . . 261 1020 Melee 1820 | . . . . . 60 . 447 . 250 244 . . 201 618 Ramming 26 | . 13 2 . . . 11 . . . . . . . . Kinetic 4233 | . 379 1289 322 . 339 1881 . . 23 . . . . . Thermal 2188 | . 670 515 . . . 1003 . . . . . . . . Explosive 2238 | . . 312 425 . 155 . . . . 65 . . 261 1020 Electromagnetic . | . . . . . . . . . . . . . . . Impact . | . . . . . . . . . . . . . . . Slashing 1049 | . . . . . 60 . 447 . 250 244 . . 48 . Piercing 771 | . . . . . . . . . . . . . 153 618 Highest Corruption 13 | . . . . . . . 1 1 1 . . . 1 13 Average Corruption 2 | . . . . . . . 1 1 1 . . . 1 5 Corruption Purged 4 | . . . . . . . . . . . . . . 4 Corruption Blocked . | . . . . . . . . . . . . . . . Effects 10 | . . . . . . . . 1 2 . . . . 7 Message Errors 3 | . . . . . . . . . . . . . . 3 Matter Fused 1 | . . . . . . . . . . . . . . 1 Heat Flow Errors 3 | . . . . . . . . 1 1 . . . . 1 Energy Discharges 1 | . . . . . . . . . . . . . . 1 Parts Rejected 1 | . . . . . . . . . . . . . . 1 Data Loss (major) 1 | . . . . . . . . . 1 . . . . . Overload Shots . | . . . . . . . . . . . . . . . Overflow Damage 483 | . 1 37 1 . 8 . 19 . 29 16 . . 133 239 Projectiles 21 | . 1 19 1 . . . . . . . . . . . Explosions 67 | . . 18 . . 8 . . . . . . . . 41 Melee 395 | . . . . . . . 19 . 29 16 . . 133 198 Knockbacks 10 | . . 4 2 . . 4 . . . . . . . . Impact . | . . . . . . . . . . . . . . . Kinetic 10 | . . 4 2 . . 4 . . . . . . . . Secondary . | . . . . . . . . . . . . . . . Self-Inflicted Damage 192 | . . 25 37 . 49 5 . . . 23 . . . 53 Shots 6 | . . 1 1 . 1 . . . . 1 . . . 2 Rammed 9 | . 6 1 . . . 2 . . . . . . . . Targets Rammed 10 | . 6 2 . . . 2 . . . . . . . . Kicked . | . . . . . . . . . . . . . . . Crushed 1 | . . 1 . . . . . . . . . . . . Highest Temperature 332 | . 296 99 57 . 15 41 8 199 203 332 103 125 291 172 Average Temperature 72 | . 90 26 31 . 9 10 8 129 31 120 28 54 71 85 Received Heat Transfer 1870 | . 396 306 . . 126 820 27 . 84 . 9 36 39 27 Effects 7 | . 1 . . . . . . . . 3 . . 3 . Shutdowns 1 | . . . . . . . . . . 1 . . . . Energy Bleed 2 | . 1 . . . . . . . . . . . 1 . Interference 4 | . . . . . . . . . . 2 . . 2 . Siege Activations . | . . . . . . . . . . . . . . . Robots Corrupted . | . . . . . . . . . . . . . . . Combat Hostiles . | . . . . . . . . . . . . . . . Parts Fried . | . . . . . . . . . . . . . . . Impact Corruptions . | . . . . . . . . . . . . . . . Robots Melted . | . . . . . . . . . . . . . . . Combat Hostiles . | . . . . . . . . . . . . . . . Parts Melted 6 | . 3 1 . . . 2 . . . . . . . . Heat Transferred 5106 | . 1813 925 . . . 2368 . . . . . . . . Parts Sabotaged . | . . . . . . . . . . . . . . . Parts Stolen . | . . . . . . . . . . . . . . . Parts Stripped . | . . . . . . . . . . . . . . . Power Chain Reactions . | . . . . . . . . . . . . . . . Alert | -11 -10 -9 -9 -9 -8 -8 -7 -7 -6 -5 -4 -4 -3 -2 ------- Run | Yrd Mat Mat Min Exi Min Mat Fac Sto Fac Fac Fac Ext Res Res Peak Influence 488 | . 217 377 264 . 200 229 248 185 158 162 165 122 284 488 Initial 139 | . . 52 139 . . 47 50 65 84 18 5 80 63 47 Average 127 | . 112 208 94 . 35 119 96 90 80 52 61 84 180 204 Maximum Alert Level 2 | . 1 1 1 . 1 1 1 . . . . . 1 2 Low Security (%) 79 | 100 98 52 75 . 95 84 94 100 100 100 100 100 64 48 Level 1 20 | . 1 47 24 . 4 15 5 . . . . . 35 49 Level 2 . | . . . . . . . . . . . . . . 2 Level 3 . | . . . . . . . . . . . . . . . Level 4 . | . . . . . . . . . . . . . . . Level 5 . | . . . . . . . . . . . . . . . High Security . | . . . . . . . . . . . . . . . Max Security . | . . . . . . . . . . . . . . . Squads Dispatched 24 | . 3 1 . . . 4 3 1 8 1 . . . 3 Investigation 8 | . 2 . . . . 1 2 . 3 . . . . . Extermination 2 | . . . . . . . 1 . 1 . . . . . Reinforcement 13 | . 1 1 . . . 3 . . 4 1 . . . 3 Assault . | . . . . . . . . . . . . . . . Garrison 1 | . . . . . . . . 1 . . . . . . Intercept . | . . . . . . . . . . . . . . . Searches Triggered . | . . . . . . . . . . . . . . . Construction Impeded . | . . . . . . . . . . . . . . . Haulers Reinforced . | . . . . . . . . . . . . . . . Active Scanning Responses . | . . . . . . . . . . . . . . . Cargo Convoy Interrupts . | . . . . . . . . . . . . . . . Stealth | -11 -10 -9 -9 -9 -8 -8 -7 -7 -6 -5 -4 -4 -3 -2 --------- Run | Yrd Mat Mat Min Exi Min Mat Fac Sto Fac Fac Fac Ext Res Res Distress Signals 12 | . 2 6 . . . 1 . 1 . . . . . 2 Communications Jammed 9 | . . . . . . . . . . 3 . . 6 . Distress Signals 7 | . . . . . . . . . . 3 . . 4 . Times Spotted 218 | . 24 39 10 . 10 31 17 5 6 9 8 6 16 37 Peak Tracking Total 10 | . 4 4 6 . 3 4 3 7 3 4 4 5 6 10 Tactical Retreats 28 | . . 2 1 . . 1 4 1 2 2 2 . 5 8 Traps | -11 -10 -9 -9 -9 -8 -8 -7 -7 -6 -5 -4 -4 -3 -2 ------- Run | Yrd Mat Mat Min Exi Min Mat Fac Sto Fac Fac Fac Ext Res Res Traps Triggered 11 | . 2 1 . . . . 4 . 2 1 . . . 1 Indirectly . | . . . . . . . . . . . . . . . Trap Hack Attempts . | . . . . . . . . . . . . . . . Triggered . | . . . . . . . . . . . . . . . Disarmed 4 | . . . . . . . . . . 4 . . . . Reprogrammed 6 | . . . . . . . . . 6 . . . . . Reused . | . . . . . . . . . . . . . . . Traps Extracted . | . . . . . . . . . . . . . . . Installed . | . . . . . . . . . . . . . . . Triggered . | . . . . . . . . . . . . . . . Machines | -11 -10 -9 -9 -9 -8 -8 -7 -7 -6 -5 -4 -4 -3 -2 ---------- Run | Yrd Mat Mat Min Exi Min Mat Fac Sto Fac Fac Fac Ext Res Res Machines Disabled 11 | . 3 3 1 . 1 . . . . . . . . 3 Max in Single Turn 1 | . 1 1 1 . 1 . . . . . . . . 1 Garrison Access 2 | . . . . . . . 1 . 1 . . . . . Machines Repaired . | . . . . . . . . . . . . . . . Machines Dismantled . | . . . . . . . . . . . . . . . Machines Sabotaged . | . . . . . . . . . . . . . . . Overloaded Fab Kills . | . . . . . . . . . . . . . . . Hacking | -11 -10 -9 -9 -9 -8 -8 -7 -7 -6 -5 -4 -4 -3 -2 --------- Run | Yrd Mat Mat Min Exi Min Mat Fac Sto Fac Fac Fac Ext Res Res Machines Accessed 88 | . 6 13 . 1 . 8 13 4 16 13 4 3 3 4 Terminals 63 | . 4 9 . . . 6 7 4 10 11 3 3 3 3 Fabricators 3 | . . . . . . . 1 . 2 . . . . . Repair Stations 6 | . . 1 . . . 2 1 . . 1 1 . . . Recycling Units 6 | . 2 1 . . . . 1 . 1 1 . . . . Scanalyzers 5 | . . 2 . . . . 1 . 1 . . . . 1 Garrison Access 4 | . . . . . . . 2 . 2 . . . . . Total Hacks 273 | . 20 46 . 1 . 27 31 6 62 42 13 6 9 10 Successful 188 | . 14 33 . 1 . 20 21 4 45 29 10 3 3 5 Failed 84 | . 6 13 . . . 7 10 2 17 12 3 3 6 5 Catastrophic 7 | . . . . . . . 1 1 1 . 1 1 1 1 Database Lockouts 1 | . . . . . . . . . . 1 . . . . Manual 185 | . 15 30 . 1 . 19 18 5 41 25 10 4 9 8 Terminals 208 | . 11 32 . . . 21 20 6 50 34 11 6 9 8 Fabricators 8 | . . . . . . . 3 . 5 . . . . . Repair Stations 14 | . . 2 . . . 6 2 . . 2 2 . . . Recycling Units 21 | . 9 4 . . . . 1 . 1 6 . . . . Scanalyzers 13 | . . 8 . . . . 1 . 2 . . . . 2 Garrison Access 8 | . . . . . . . 4 . 4 . . . . . Terminal Hacks 92 | . 5 12 . 1 . 9 8 2 28 18 6 2 1 . Record 7 | . . 1 . . . . 1 . . 1 4 . . . Part Schematic 5 | . 1 . . . . . 1 . 2 1 . . . . Robot Analysis 4 | . 1 1 . . . . . . 2 . . . . . Prototype ID Bank 2 | . . . . . . . . . 2 . . . . . Open Door 4 | . . . . . . . . 1 . . 1 2 . . Open DSF 1 | . . . . . . . . . . 1 . . . . Level Access Points 1 | . . . . . . . . . 1 . . . . . Branch Access Points 5 | . . 1 . . . . 1 . 1 1 1 . . . Emergency Access Points 2 | . . . . . . 1 1 . . . . . . . Terminal Index 7 | . 1 1 . . . 1 1 1 1 1 . . . . Fabricator Index 1 | . . . . . . . . . . 1 . . . . Scanalyzer Index 1 | . . . . . . . . . . 1 . . . . Alert Level 6 | . . . . . . 1 . . 1 3 . . 1 . Unreport Threat 1 | . . . . . . . . . . 1 . . . . Locate Traps 14 | . 1 5 . . . 2 2 . 3 1 . . . . Disarm Traps 1 | . . . . . . . . . . 1 . . . . Reprogram Traps 1 | . . . . . . . . . 1 . . . . . Dispatch Records 3 | . . 1 . . . . . . . 2 . . . . Security Status 1 | . . . . . . . . . 1 . . . . . Investigation Status 1 | . . . . . . . . . 1 . . . . . Reinforcement Status 1 | . . . . . . . . . 1 . . . . . Recall Investigation 3 | . . . . . . . . . 3 . . . . . Recall Reinforcements 5 | . . . . . . 1 . . 3 1 . . . . Hauler Manifests 4 | . 1 1 . . . . 1 . 1 . . . . . Registered Components 2 | . . . . . . 1 . . 1 . . . . . Registered Prototypes 1 | . . 1 . . . . . . . . . . . . Zone Layout 7 | . . . . . . 2 . . 3 2 . . . . Derelict Proto ID Bank 1 | . . . . 1 . . . . . . . . . . Fabricator Hacks 6 | . . . . . . . 2 . 4 . . . . . Load Schematic 3 | . . . . . . . 1 . 2 . . . . . Build 3 | . . . . . . . 1 . 2 . . . . . Repair Station Hacks 12 | . . 2 . . . 4 2 . . 2 2 . . . Scan Component 6 | . . 1 . . . 2 1 . . 1 1 . . . Repair 6 | . . 1 . . . 2 1 . . 1 1 . . . Recycling Unit Hacks 6 | . 1 2 . . . . . . 1 2 . . . . Report Inventory 3 | . . 1 . . . . . . 1 1 . . . . Retrieve Components 3 | . 1 1 . . . . . . . 1 . . . . Scanalyzer 12 | . . 7 . . . . 1 . 2 . . . . 2 Insert Component 7 | . . 4 . . . . 1 . 1 . . . . 1 Analyze 5 | . . 3 . . . . . . 1 . . . . 1 Garrison Access Hacks 2 | . . . . . . . 1 . 1 . . . . . Seal Access 2 | . . . . . . . 1 . 1 . . . . . Unauthorized Hacks 58 | . 8 10 . . . 7 7 2 9 7 2 1 2 3 Terminals 51 | . 4 9 . . . 7 6 2 9 6 2 1 2 3 Assimilate 5 | . . 1 . . . 1 1 . . 1 . . . 1 Botnet 46 | . 4 8 . . . 6 5 2 9 5 2 1 2 2 Fabricators . | . . . . . . . . . . . . . . . Repair Stations . | . . . . . . . . . . . . . . . Recycling Units 7 | . 4 1 . . . . 1 . . 1 . . . . Monitor 1 | . . . . . . . . . . 1 . . . . Reject 4 | . 2 1 . . . . 1 . . . . . . . Mask 2 | . 2 . . . . . . . . . . . . . Scanalyzers . | . . . . . . . . . . . . . . . Garrison Access . | . . . . . . . . . . . . . . . Data Cores Recovered 3 | . . 1 . . . 1 1 . . . . . . . Used 2 | . . 1 . . . 1 . . . . . . . . Hacking Detections 64 | . 6 9 . . . 7 10 3 11 8 3 1 3 3 Full Trace Events 5 | . . . . . . 1 1 . 3 . . . . . Feedback Events . | . . . . . . . . . . . . . . . Feedback Blocked . | . . . . . . . . . . . . . . . Robot Schematics Acquired . | . . . . . . . . . . . . . . . Robots Built . | . . . . . . . . . . . . . . . Authchips . | . . . . . . . . . . . . . . . Time . | . . . . . . . . . . . . . . . Total Robot Build Rating . | . . . . . . . . . . . . . . . Part Schematics Acquired 9 | . 1 2 . . . . 1 . 3 1 . . . 1 Parts Built 5 | . . . . . . . 2 . 3 . . . . . Authchips . | . . . . . . . . . . . . . . . Time 228 | . . . . . . . 47 . 181 . . . . . Total Part Build Rating 24 | . . . . . . . 10 . 14 . . . . . Parts Repaired 6 | . . 1 . . . 2 1 . . 1 1 . . . Time 251 | . . 38 . . . 63 38 . . 62 50 . . . Parts Recycled . | . . . . . . . . . . . . . . . Recycled Matter . | . . . . . . . . . . . . . . . Retrieved Matter . | . . . . . . . . . . . . . . . Retrieved Components 17 | . 4 10 . . . . . . . 3 . . . . Parts Scanalyzed 4 | . . 2 . . . . . . 1 . . . . 1 Part Schematics Acquired 4 | . . 2 . . . . . . 1 . . . . 1 Parts Damaged . | . . . . . . . . . . . . . . . Bothacking | -11 -10 -9 -9 -9 -8 -8 -7 -7 -6 -5 -4 -4 -3 -2 ------------ Run | Yrd Mat Mat Min Exi Min Mat Fac Sto Fac Fac Fac Ext Res Res Used RIF Installer . | . . . . . . . . . . . . . . . Robots Hacked . | . . . . . . . . . . . . . . . Non-combat . | . . . . . . . . . . . . . . . Combat . | . . . . . . . . . . . . . . . Robot Hacks Applied . | . . . . . . . . . . . . . . . Relay Couplers Released . | . . . . . . . . . . . . . . . Fabnet Peak Effective % . | . . . . . . . . . . . . . . . Robots Rewired . | . . . . . . . . . . . . . . . Allies Hacked . | . . . . . . . . . . . . . . . Hacks Repelled . | . . . . . . . . . . . . . . . Allies | -11 -10 -9 -9 -9 -8 -8 -7 -7 -6 -5 -4 -4 -3 -2 -------- Run | Yrd Mat Mat Min Exi Min Mat Fac Sto Fac Fac Fac Ext Res Res Total Allies 6 | . . 1 . . . 1 1 . . 1 . 1 . 1 Largest Group 1 | . . 1 . . . 1 1 . . 1 . 1 . 1 Highest-Rated Group 46 | . . 10 . . . 10 26 . . 26 . 46 . 26 Highest-Rated Ally 46 | . . 10 . . . 10 26 . . 26 . 46 . 26 Total Orders . | . . . . . . . . . . . . . . . Ally Attacks 9 | . . . . . . . . . . . . 9 . . Total Damage 324 | . . . . . . . . . . . . 324 . . Kills 1 | . . . . . . . . . . . . 1 . . Allies Corrupted . | . . . . . . . . . . . . . . . Allies Melted . | . . . . . . . . . . . . . . . Intel | -11 -10 -9 -9 -9 -8 -8 -7 -7 -6 -5 -4 -4 -3 -2 ------- Run | Yrd Mat Mat Min Exi Min Mat Fac Sto Fac Fac Fac Ext Res Res Robot Analysis Total 4 | . 1 1 . . . . . . 2 . . . . . Derelict Logs Recovered 1 | . . . 1 . . . . . . . . . . . Drone Launches . | . . . . . . . . . . . . . . . Drone Recoveries . | . . . . . . . . . . . . . . . Exploration | -11 -10 -9 -9 -9 -8 -8 -7 -7 -6 -5 -4 -4 -3 -2 ------------- Run | Yrd Mat Mat Min Exi Min Mat Fac Sto Fac Fac Fac Ext Res Res Turns Passed 12348 | 3 1278 3029 1166 312 795 1873 826 65 908 748 340 115 423 467 Spaces Moved 13245 | 1 601 1267 476 215 306 962 1645 207 2195 1778 719 470 1450 953 Core 6 | . . . . . . . . . . . . . . 6 Treads 2250 | 1 553 980 405 . 279 32 . . . . . . . . Legs . | . . . . . . . . . . . . . . . Wheels 1492 | . 48 287 71 215 27 844 . . . . . . . . Hover 13 | . . . . . . . . . . . . . . 13 Flight 9484 | . . . . . . 86 1645 207 2195 1778 719 470 1450 934 Fastest Speed 16 | 160 110 110 145 145 145 29 26 26 20 20 19 19 16 17 Average Speed 67 | 160 166 210 227 145 227 108 26 26 25 21 19 19 17 26 Slowest Speed 320 | 160 240 240 320 145 320 320 29 26 27 24 19 19 22 150 Overloaded Moves 23 | . . . . . . . . . . . . . . 23 Propulsion Burnouts 1 | . . . . . . . . . . . . . . 1 Robots Hopped 104 | . . . . . . . 20 8 13 21 8 16 8 10 Cave-ins Triggered 1 | . . . . . . . . . . . . . . 1 Exploration Rate (%) 45 | 1 74 81 77 60 70 52 37 45 42 36 20 33 29 29 Regions Visited 14 Branch Regions 5 Pre-discovered Areas 1 | . . . 1 . . . . . . . . . . . Known Exits Taken 4 | . . 1 . . . . 1 . 1 . 1 . . . Unknown Exits Taken 10 | 1 1 . 1 1 1 1 . 1 . 1 . 1 1 . Scrap Searched 3 | . . . 2 . 1 . . . . . . . . . Spaces Dug 79 | . . . . . . . . . 18 3 8 . 8 42 Terrain Destroyed 307 | . . 49 46 . 32 7 . . 18 22 8 . 37 88 Melee 43 | . . . . . . . . . 18 3 8 . 8 6 Projectile 20 | . . 10 3 . . 7 . . . . . . . . AOE 244 | . . 39 43 . 32 . . . . 19 . . 29 82 Terrain Rammed . | . . . . . . . . . . . . . . . Walls Destroyed . | . . . . . . . . . . . . . . . Machines Disabled . | . . . . . . . . . . . . . . . Actions | -11 -10 -9 -9 -9 -8 -8 -7 -7 -6 -5 -4 -4 -3 -2 --------- Run | Yrd Mat Mat Min Exi Min Mat Fac Sto Fac Fac Fac Ext Res Res Total 15861 | 2 747 1535 533 216 372 1580 2001 209 2492 2112 900 478 1586 1098 Wait 1818 | . 27 58 13 . 13 408 338 11 252 320 167 23 103 85 Move 13035 | . 600 1266 475 214 305 961 1608 191 2168 1735 703 443 1433 933 Hop 92 | . . . . . . . 16 7 13 21 7 10 8 10 Pick Up 118 | . 16 38 7 1 4 23 8 . 9 5 1 . 5 1 Fast Attach 60 | . 3 1 2 . 2 16 3 . 6 2 5 . 7 13 Attach 38 | . 3 7 3 . . 9 3 . 2 2 1 1 3 4 Detach 15 | . 1 1 . . . 2 1 . 1 . 2 . 1 6 Swap 78 | 2 7 14 6 . 7 9 5 . 3 12 2 1 5 5 Drop 138 | . 10 35 6 1 8 32 8 . 12 5 3 . 8 10 Fire 368 | . 74 113 21 . 30 118 . . 2 1 . . 3 6 Melee 91 | . . . . . 3 . 11 . 24 9 9 . 10 25 Ram 2 | . . . . . . 2 . . . . . . . . Kick . | . . . . . . . . . . . . . . . Crush 8 | . 6 2 . . . . . . . . . . . . Escape Stasis . | . . . . . . . . . . . . . . . Rewire . | . . . . . . . . . . . . . . . Trap . | . . . . . . . . . . . . . . . Miscellaneous . | . . . . . . . . . . . . . . . Route ------- -11/Scrapyard -10/Materials (discovered 3 exits: *Mat x2 / [*Min]) -9/Materials (discovered 4 exits: *Mat x2 / *Min x2) -9/Mines (discovered 2 exits: *Mat / *Exi) -9/Exiles (discovered 2 exits: [*Min x2]) -8/Mines (discovered 2 exits: *Mat x2) -8/Materials -7/Factory (discovered 4 exits: *Fac / *Sto / Low x2) -7/Storage -6/Factory (discovered 6 exits: *Fac x4 / Low x2) -5/Factory (discovered 4 exits: *Fac x2 / Upp x2) -4/Factory (discovered 7 exits: *Res x2 / Upp x2 / *Ext x2 / Arm) -4/Extension -3/Research -2/Research (discovered 1 exit: [*Qua]) History --------- Turn | Location | Event 4 | -11/Scrapyard | Discovered new exit (range 0) 4 | -11/Scrapyard | Entered Materials 303 | -10/Materials | Build established: Mutant 458 | -10/Materials | Discovered new exit (range 14) 696 | -10/Materials | Core integrity fell below 50% 778 | -10/Materials | Discovered new exit (range 11) 837 | -10/Materials | Core integrity fell below 20% 978 | -10/Materials | Discovered new exit (range 15) 1282 | -10/Materials | Entered another Materials area 1282 | -9/Materials | Evolved 2 slots: Utility x2 1450 | -9/Materials | Discovered new exit (range 11) 1474 | -9/Materials | Identified exit to Mines 1690 | -9/Materials | Build established: Scavenger-Mutant 1828 | -9/Materials | Discovered new exit (range 3) 2349 | -9/Materials | Repaired Assault Cannon 2967 | -9/Materials | Discovered new exit (range 10) 4311 | -9/Materials | Entered Mines 4322 | -9/Mines | Met a Derelict bent on vengeance 4336 | -9/Mines | Assembled infested the area 4582 | -9/Mines | Lost 3 parts (1p1u1w) 4768 | -9/Mines | Deemed a non-threat by the Exiles lab entrance 4771 | -9/Mines | Discovered new exit (range 5) 5038 | -9/Mines | Discovered new exit (range 9) 5477 | -9/Mines | Entered Exiles 5499 | -9/Exiles | Discovered new exit (range 14) 5514 | -9/Exiles | Met 8R-AWN 5538 | -9/Exiles | Met EX-HEX 5578 | -9/Exiles | Met EX-BIN 5598 | -9/Exiles | Aligned with FarCom system 5599 | -9/Exiles | Given EX-Vault access code 5620 | -9/Exiles | Build established: Mutant 5637 | -9/Exiles | Opened EX-Vault 5646 | -9/Exiles | Found Chronowheel 5676 | -9/Exiles | Warned to stay clear of 0b10 Research branches 5723 | -9/Exiles | Met EX-DEC 5773 | -9/Exiles | Discovered new exit (range 14) 5789 | -9/Exiles | Left Exiles lab with Chronowheel 5789 | -9/Exiles | Entered Mines 6012 | -8/Mines | Core integrity fell below 50% 6127 | -8/Mines | Build established: Scavenger-Assassin 6209 | -8/Mines | Discovered new exit (range 14) 6555 | -8/Mines | Discovered new exit (range 8) 6584 | -8/Mines | Entered Materials 6584 | -8/Materials | Evolved 2 slots: Propulsion x1, Utility x1 6793 | -8/Materials | Lost 3 parts (1n1u1w) 7054 | -8/Materials | Build established: Scavenger-Mutant 7086 | -8/Materials | Repaired System Shield 7524 | -8/Materials | Discovered new exit (range 8) 8186 | -8/Materials | Repaired Imp. Assault Rifle 8371 | -8/Materials | Core integrity fell below 50% 8401 | -8/Materials | Lost 6 parts (1p3n2u) 8457 | -8/Materials | Entered Factory 8457 | -7/Factory | Evolved 2 slots: Propulsion x1, Utility x1 8688 | -7/Factory | Build established: Hacker-Sprinter 8715 | -7/Factory | Discovered new exit (range 15) 9041 | -7/Factory | Fabricated Nuclear Pulse Thruster (x2) 9121 | -7/Factory | Discovered new exit (range 5) 9154 | -7/Factory | Identified exit to Storage 9154 | -7/Factory | Identified exit to Lower Caves 9249 | -7/Factory | Repaired Lgt. Nuclear Core 9283 | -7/Factory | Entered Storage 9296 | -7/Storage | Met 01-MTF 9313 | -7/Storage | Garrison activated, responded to threat 9342 | -7/Storage | Discovered new exit (range 16) 9348 | -7/Storage | Entered Factory 9348 | -6/Factory | Evolved 2 slots: Propulsion x2 9468 | -6/Factory | Identified exit to Lower Caves 9468 | -6/Factory | Identified exit to Factory 9602 | -6/Factory | Fabricated Imp. Cesium-ion Thruster (x1) 9709 | -6/Factory | Fabricated Lgt. Angular Momentum Engine (x2) 10256 | -6/Factory | Entered another Factory area 10256 | -5/Factory | Evolved 2 slots: Power x1, Propulsion x1 10581 | -5/Factory | Discovered new exit (range 9) 10663 | -5/Factory | Discovered new exit (range 11) 10676 | -5/Factory | Identified exit to Upper Caves 10743 | -5/Factory | Central database locked down 10810 | -5/Factory | Repaired Impulse Thruster 11004 | -5/Factory | Entered another Factory area 11004 | -4/Factory | Evolved 2 slots: Propulsion x1, Utility x1 11245 | -4/Factory | Discovered new exit (range 16) 11277 | -4/Factory | Identified exit to Upper Caves 11277 | -4/Factory | Identified exit to Extension 11277 | -4/Factory | Identified exit to Armory 11335 | -4/Factory | Repaired Fission Core 11342 | -4/Factory | Discovered new exit (range 13) 11344 | -4/Factory | Entered Extension 11387 | -4/Extension | Spotted B-86 Titan 11428 | -4/Extension | Rescued a captive Derelict 11456 | -4/Extension | Spotted B-86 Titan 11459 | -4/Extension | Discovered new exit (range 3) 11459 | -4/Extension | Entered Research 11459 | -3/Research | Evolved 2 slots: Propulsion x2 11587 | -3/Research | Spotted B-86 Titan 11706 | -3/Research | Spotted B-86 Titan 11748 | -3/Research | Discovered new exit (range 10) 11882 | -3/Research | Entered another Research area 11882 | -2/Research | Evolved 2 slots: Propulsion x1, Utility x1 12023 | -2/Research | Discovered new exit (range 10) 12036 | -2/Research | Spotted B-90 Cyclops 12065 | -2/Research | Crushed by falling debris 12243 | -2/Research | Lost 12 parts (7n5u) 12268 | -2/Research | Found Gamma Bomb Array 12287 | -2/Research | Core integrity fell below 50% 12288 | -2/Research | System corruption reached 10% 12296 | -2/Research | Core integrity fell below 20% 12318 | -2/Research | Found Prototype Device 12318 | -2/Research | Identified Exp. Actuator Array 12328 | -2/Research | Lost 4 parts (2n2u) 12349 | -2/Research | Destroyed by H-88 Terminator with KE Penetrator Last Messages --------------- 12323_ ALERT: Suspicious intruders detected, dispatching Cutter reinforcements to area. 12324_ Acquired Phase Shifter. 12327_ Door malfunctions. 12332_ System corrupted: Heat flow error (+133). 12335_ K-01 Serf cleans the Graviton Restrictor. 12339_ Slug penetrates Wall. 12339_ Phase Shifter destroyed. 12339_ Slug penetrates Wall. 12343_ Graviton Restrictor disabled. 12343_ K-01 Serf collects debris. 12343_ Slug penetrates Wall. 12344_ Acquired Adv. Cryofiber Web. 12346_ K-01 Serf collects debris. 12346_ Slug penetrates Wall. 12346_ Xenon Bombardment Thruster destroyed. 12348_ 0/E7AL680PVWZ7BYFKX4X5SZ#WBIU8WN KPZN=RD 12348_ K-01 Serf collects debris. 12349_ Slug penetrates Wall. Map ----- +----------------------------------------------------+ | ?????????????????????????????????????# "R # | | ?????????????????????????????????????# """ # | | ?????????????????????????????????????# "" # | | ?????????????????????????????????????# # | | ?????????????????????????????????????# # | | ?????????????????????????????????????# # | | ?????????????????????????????????????######+### | | ???????????????????????????????????????# | | ???????????????????????????????????????# * | | ???????????????????????????????????????# % | | ???????????????????????????????????????# = | | ???????????????????????????????????????# *!###### | | ??????????????????????????????????????## ###??? | | ??????????????????????????????????????# #??? | | ??????????????????????????????????????## ##?? | | ??????????????????????????????????????# #?? | | ??????????????????????????????????????# ##?? | | ??????????????????????????????????????##% #?? | | ???????????????????????????????######## #### | | ??????????????????????????? | | ??#########???????????????? %% | | ? # = #???????????????? w [ | | ? # !!#???????????????? | | #+# !!#?????########### ################# | | / #?????# """"" # #???????????????# | | # #?????# """" @#h #???????????????# | | ##/############ k """ p #???????????????# | | + k # #???????????????# | | ###### p # #??############## | | #????#! # #??# # | | p#????# #h #??# # | | ###/##+## #????# / # #??# """ """ # | | ## # #????########### #??# """ """ # | | ## *# #?????# + #??# """ """ !#! | | ## ! # #?????#[ # #### p **%/! | | ## # #?????# # + [#= | | ## ! # #?????# # #### """ """ # | | ## # #?????# # #??# """ """ ## | | ######### #?????# ##?# """ """ ## | | ##???????# +?????# " ### #? | | #????????# #?????# S" #* + #? | | #???????## ##????# "" =! ###########+####? | | #???????# #???######### !%* #?????????# #???? | | #???????? ? #?????????# #???? | | #???????? ????######## #####??????#?????? | | #????????# #??????????# #????????????? | | #????????# #??????????# #?????????????? | | #????????# #??????????# """ """ #?????????????? | | #????????# #??????????# """ """ #?????????????? | | #??####### ############ """ """ #?????????????? | +----------------------------------------------------+ Best States ------------- Heat Dissipation 87 Energy Generation 43 Energy Capacity 630 Matter Stores 358 Matter Capacity 400 Sight Range 16 Terrain Scan Range 16 Terrain Scan Density 210 ECM Strength 2 Jamming Range 14 Base Temperature (-) 200 Armor Coverage 225 Propulsion Shielding 66 Weapon Shielding 33 Phase Shifting 5 Evasion (%) 76 Recoil Reduction 2 Offensive Hacking 30 Defensive Hacking 24 Item Schematics ----------------- Sml. Storage Unit | -10/Materials | Hacked Terrain Scanner | -9/Materials | Scanalyzed Hacking Suite | -9/Materials | Scanalyzed Nuclear Pulse Thruster | -7/Factory | Hacked Imp. Cesium-ion Thruster | -6/Factory | Scanalyzed Lgt. Angular Momentum Engine | -6/Factory | Hacked Imp. Propulsion Shielding | -6/Factory | Hacked Nuclear Pulse Array | -5/Factory | Hacked System Restoration Module | -2/Research | Scanalyzed Robot Schematics ------------------ None Fabricated ------------ Nuclear Pulse Thruster | x2 | -7/Factory Imp. Cesium-ion Thruster | x1 | -6/Factory Lgt. Angular Momentum Engine | x2 | -6/Factory Alien Tech Used ----------------- None Achievements -------------- None Challenges ------------ None Game ------ Seed AlphaSignalRefractor Manual? 0 Play Time 02:28:27 Cumulative 76.0 hours Start 2024.11.26 @ 19:47:11 End 2024.11.27 @ 12:51:04 Sessions 1 Manual Loads 0 Difficulty Rogue Special Mode None Game No. 94 Rogue 50 Adventurer 44 Explorer 0 Win Type - Total 0 Types 0/0/0/0/0/0/0/0/0 Lore% 21 Gallery% 47 Achievement% 35 Wizard Run 0 Options --------- Layout 1 ASCII 0 Keyboard 1 Movement Vi Keybinds 0 Fullscreen 1 Font 24/Terminus Map View 50x40 Zoom Use 0% Tactical HUD 1 Map Filters NONE Filters NONE Steam 1 RUN: a62a16a9-8cfc-4d3e-aa27-224305423cd9